fUSD/lending_fUSD_20240615
["ID","MTS","AMOUNT","RATE_DAILY","PERIOD"]
[329588232,1718466431437,-155.0,0.00011364,2]
[329588233,1718466431473,-8427.64214039,0.00011364,2]
[329588234,1718466431507,-150.0,0.0001137,2]
[329588235,1718466431563,-5052.38360814,0.00011373,2]
[329588236,1718466431619,-668.67887058,0.00011394,2]
[329588237,1718466431661,-3222.34695693,0.00011394,2]
[329588238,1718466431732,-454.97,0.00011396,2]
[329588239,1718466431779,-446.94,0.00012077,2]
[329588240,1718466431841,-1000.0,0.00012234,2]
[329588241,1718466431909,-6805.68408012,0.00012307,2]
[329588242,1718466443333,-2196.27253145,0.00011359,2]
[329588243,1718466443399,-13350.30764666,0.00012307,2]
[329588244,1718466444349,-2496.61144419,0.00012307,2]
[329588250,1718466536678,496.24,0.00010279,2]
[329588251,1718466555140,-150.0,0.00012213,2]
[329588252,1718466555182,-1999.82,0.00012231,2]
[329588253,1718466555224,-318.37,0.0001226,2]
[329588254,1718466555266,-446.554,0.00012307,2]
[329588255,1718466562793,-800.84282903,0.00012307,2]
[329588256,1718466562821,-500.0,0.00012366,2]
[329588257,1718466562861,-156.69,0.0001238,2]
[329588258,1718466562916,-250.0,0.00012395,2]
[329588259,1718466562947,-156.69,0.00012434,2]
[329588260,1718466562984,-156.69,0.00012487,2]
[329588261,1718466563026,-155.09678174,0.00012508,2]
[329588262,1718466563072,-156.69,0.00012541,2]
[329588263,1718466563146,-496.24,0.00012543,2]
[329588264,1718466586946,510.78,0.00012453,2]
[329588270,1718466607036,11950.52,0.00012435,2]
[329588271,1718466630966,200.0,0.00012475,2]
[329588275,1718466633946,-156.69,0.00012595,2]
[329588276,1718466633980,-2196.27253145,0.00012648,2]
[329588279,1718466634005,-165.18236195,0.00012649,2]
[329588284,1718466634826,-265.29763805,0.00012649,2]
[329588285,1718466634847,-156.69,0.00012649,2]
[329588286,1718466634884,-156.69,0.00012702,2]
[329588287,1718466634919,-178.40077244,0.00012734,2]
[329588288,1718466634947,-121.59922756,0.00012734,2]
[329588289,1718466634970,-156.69,0.00012756,2]
[329588290,1718466634997,-156.69,0.0001281,2]
[329588291,1718466635011,-104.71097352,0.00012864,2]
[329588292,1718466635027,-51.97902648,0.00012864,2]
[329588293,1718466635049,-156.69,0.00012917,2]
[329588294,1718466635086,-156.69,0.00012971,2]
[329588295,1718466635106,-450.0,0.0001298,2]
[329588296,1718466635120,-712.99200597,0.00013,2]
[329588297,1718466635164,-1453.94181576,0.00013,2]
[329588298,1718466635190,-3244.55441955,0.00013,2]
[329588299,1718466635208,-4003.19825521,0.00013,2]
[329588300,1718466635224,-692.63676,0.00013,2]
[329588301,1718466635238,-156.69,0.00013025,2]
[329588302,1718466635254,-5016.97778142,0.0001305,2]
[329588303,1718466635288,-155.92715913,0.0001309,2]
[329588304,1718466635299,-300.05767079,0.0001309,2]
[329588305,1718466635310,-501.95976371,0.00013203,2]
[329588306,1718466635324,-250.0,0.00013209,2]
[329588307,1718466635336,-499.99,0.00013209,2]
[329588308,1718466635347,-1933.22795139,0.00013297,2]
[329588309,1718466635361,-625.63244102,0.00013342,2]
[329588310,1718466635377,-981.86,0.00013359,2]
[329588311,1718466635424,-167.31,0.00013446,2]
[329588312,1718466635452,-172.85,0.00013577,2]
[329588313,1718466635467,-386.98267617,0.00013612,2]
[329588315,1718466635481,-254.9,0.00013699,2]
[329588316,1718466635504,-200.0,0.00013699,2]
[329588318,1718466635516,-283.26,0.00013699,2]
[329588321,1718466635569,-232.9223,0.000137,2]
[329588323,1718466635586,-1000.0,0.00013764,2]
[329588324,1718466635598,-5191.2482,0.00013798,2]
[329588326,1718466635632,-18087.6193,0.000138,2]
[329588328,1718466635648,-544.63811885,0.000138,2]
[329588330,1718466635661,-219.65,0.0001389,3]
[329588332,1718466635696,-481.00517144,0.00013896,2]
[329588333,1718466635727,-326.82963563,0.00013896,2]
[329588335,1718466635749,-158.28745137,0.00013896,2]
[329588337,1718466635761,-654.33928765,0.00013896,2]
[329588339,1718466635776,-168.23565726,0.00013896,2]
[329588340,1718466635800,-209.09518698,0.00013897,2]
[329588341,1718466635841,-2991.63756086,0.00013897,2]
[329588342,1718466635876,-645.50901128,0.00013898,2]
[329588343,1718466635916,-156.74727177,0.00013898,2]
[329588344,1718466635960,-625.97046574,0.00013898,2]
[329588345,1718466635972,-1488.74285699,0.00013898,2]
[329588346,1718466635989,-155.29828979,0.00013898,2]
[329588347,1718466636008,-169.6987412,0.00013898,2]
[329588348,1718466636056,-237.23360084,0.00013898,2]
[329588349,1718466636077,-155.37423626,0.00013898,2]
[329588350,1718466636108,-469.15504323,0.00013898,2]
[329588351,1718466636124,-1009.49307208,0.00013898,2]
[329588352,1718466636137,-177.3499484,0.00013898,2]
[329588353,1718466636157,-485.27579162,0.00013898,2]
[329588354,1718466636176,-468.41631575,0.00013898,2]
[329588356,1718466636207,-205.53087797,0.00013898,2]
[329588358,1718466636256,-247.01683963,0.00013898,2]
[329588359,1718466636280,-1392.58693338,0.00013898,2]
[329588360,1718466636296,-338.58185899,0.00013898,2]
[329588361,1718466636309,-358.91103888,0.00013898,2]
[329588362,1718466636329,-155.5729,0.00013898,2]
[329588363,1718466636340,-293.38977939,0.00013898,2]
[329588364,1718466636356,-330.51683228,0.00013898,2]
[329588365,1718466636368,-3116.05358577,0.00013898,2]
[329588366,1718466636381,-1067.92836055,0.00013898,2]
[329588367,1718466636396,-3100.39153479,0.00013898,2]
[329588368,1718466636476,-1000.0,0.00013898,2]
[329588369,1718466636488,-155.97820346,0.00013898,2]
[329588370,1718466636498,-400.0,0.00013898,2]
[329588371,1718466636516,-96809.60042378,0.00013898,2]
[329588372,1718466636531,-560.13004279,0.00013899,2]
[329588373,1718466636545,-2004.02984244,0.00013899,2]
[329588374,1718466636567,-7124.40516495,0.00013899,2]
[329588375,1718466636624,-4077.59336158,0.00013899,2]
[329588376,1718466636656,-658.95366883,0.00013899,2]
[329588377,1718466636712,-9956.357982,0.000139,2]
[329588378,1718466636748,-85046.74688561,0.000139,2]
[329588379,1718466637051,-4e-08,0.000139,2]
[329588380,1718466637072,-349.70936002,0.000139,2]
[329588381,1718466637109,-970.57304693,0.000139,2]
[329588382,1718466637590,-13632.9707074,0.000139,2]
[329588383,1718466637654,-4175.627,0.000139,2]
[329588384,1718466637675,-20990.66755825,0.000139,2]
[329588385,1718466637690,-165.47442078,0.000139,2]
[329588386,1718466637707,-179.5363574,0.000139,2]
[329588387,1718466637725,-1450.6347963,0.000139,2]
[329588388,1718466637773,-412.45466168,0.00013939,2]
[329588389,1718466637795,-420.0,0.00013969,2]
[329588390,1718466637840,-152.51,0.0001399,2]
[329588391,1718466637857,-632.53895102,0.00013998,2]
[329588392,1718466637869,-208.72501019,0.00013999,2]
[329588393,1718466637892,-4093.95047743,0.00013999,2]
[329588394,1718466637914,-150.0,0.00013999,2]
[329588395,1718466637946,-165691.93794102,0.00014,2]
[329588396,1718466637980,-254.68592052,0.00014,2]
[329588397,1718466638013,-503.32943277,0.00014,2]
[329588398,1718466638045,-2441.10952593,0.00014,2]
[329588403,1718466639840,-365.01416679,0.00014,2]
[329588405,1718466639890,-766.45695671,0.00014,2]
[329588406,1718466639913,-358.9537836,0.00014,2]
[329588407,1718466639936,-700.81930549,0.00014,2]
[329588408,1718466639950,-2686.0,0.00014,2]
[329588409,1718466641203,-2046.97523871,0.00013999,2]
[329588410,1718466641237,-9544.45391997,0.00014,2]
[329588411,1718466641313,-5213.2416444,0.00014,2]
[329588412,1718466641349,-515.28705452,0.00014,2]
[329588413,1718466641393,-709.08266212,0.00014,2]
[329588414,1718466641508,-4554.81919575,0.00014,2]
[329588415,1718466641597,-1701.42867512,0.00014,2]
[329588416,1718466641633,-916.92440523,0.00014,2]
[329588417,1718466641663,-114648.89383462,0.00014,2]
[329588418,1718466641878,-1954.35925454,0.000139,2]
[329588419,1718466641917,-1576.74074546,0.00014,2]
[329588420,1718466641972,-49579.12018321,0.00014,2]
[329588421,1718466642015,-969.88053301,0.00014,2]
[329588429,1718466645913,-271.205,0.00014,2]
[329588430,1718466646797,-1023.48761936,0.00013999,2]
[329588431,1718466646820,-84.19497901,0.00014,2]
[329588432,1718466646841,-1182.9802283,0.00014,2]
[329588434,1718466649337,-272.09116053,0.00013999,2]
[329588441,1718466650023,-1922.594314,0.00013999,2]
[329588443,1718466650036,-76507.14169941,0.00014,2]
[329588444,1718466650050,-7023.35917763,0.00014,2]
[329588445,1718466650065,-124988.8510299,0.00014,2]
[329588446,1718466650085,-3116.89835516,0.00014,2]
[329588450,1718466650837,-273.36204567,0.00013999,2]
[329588451,1718466650865,-238.38176401,0.00013999,2]
[329588452,1718466650879,-144.46457432,0.00014,2]
[329588453,1718466650900,-673.22,0.00014,2]
[329588454,1718466650954,-2185.41662476,0.00014,2]
[329588455,1718466650989,-1121.14366167,0.00014,2]
[329588457,1718466651005,-34879.9999999,0.00014,2]
[329588459,1718466651034,-134000.0,0.00014,2]
[329588461,1718466651584,-1325.92,0.00014,2]
[329588462,1718466651607,-3034.50388996,0.00014,2]
[329588463,1718466652254,-896.01,0.00014,2]
[329588464,1718466652274,-66865.37496421,0.00014,2]
[329588473,1718466695333,2554.35424939,0.000105,2]
[329588474,1718466721445,1180.36767347,0.000105,2]
[329588475,1718466736501,958.48201371,9.975e-05,2]
[329588476,1718466738661,10741.46165581,0.000105,2]
[329588477,1718466738695,27138.33686398,0.000105,2]
[329588478,1718466738765,159359.25602005,0.000105,2]
[329588479,1718466744650,410.98131787,0.000105,2]
[329588480,1718466751425,26000.0,0.000275,120]
[329588481,1718466752438,155.50808656,9.975e-05,2]
[329588482,1718466754685,348.18949365,0.000105,2]
[329588483,1718466758917,4050.0,0.000273,60]
[329588484,1718466760732,232.17404097,0.000105,2]
[329588485,1718466763426,1042.0,0.00013795,7]
[329588486,1718466774684,428.26096981,0.000105,2]
[329588487,1718466789301,501.21402005,0.00013795,7]
[329588493,1718467439102,162.85,0.00010179,2]
[329588494,1718467458308,-748.82760929,0.00027534,30]
[329588495,1718467458362,-748.82760929,0.00027644,30]
[329588496,1718467458428,-748.82760929,0.00027753,30]
[329588497,1718467458470,-748.82760929,0.0002789,30]
[329588498,1718467458516,-962.22971172,0.00028,30]
[329588499,1718467458576,-748.82760929,0.00028,30]
[329588500,1718467458615,-748.82760929,0.0002811,30]
[329588501,1718467458647,-748.82760929,0.00028219,30]
[329588502,1718467458679,-748.82760929,0.00028356,30]
[329588503,1718467458744,-522.0,0.000284,120]
[329588504,1718467458803,-748.82760929,0.00028466,30]
[329588505,1718467458842,-748.82760929,0.00028575,30]
[329588506,1718467458902,-748.82760929,0.00028685,30]
[329588507,1718467458962,-748.82760929,0.00028822,30]
[329588508,1718467459012,-748.82760929,0.00028932,30]
[329588509,1718467459066,-323.92317652,0.00029,30]
[329588510,1718467459114,-3600.0,0.00029,30]
[329588511,1718467459191,-748.82760929,0.00029041,30]
[329588512,1718467459261,-748.82760929,0.00029151,30]
[329588513,1718467459295,-34252.309796,0.000298,30]
[329588514,1718467459369,-414.86,0.00029808,30]
[329588515,1718467459433,-5400.0,0.0002999,30]
[329588516,1718467459469,-5400.0,0.0002999,31]
[329588517,1718467459504,-200.36288125,0.0003,120]
[329588518,1718467459552,-1799.99999907,0.0003,31]
[329588519,1718467459582,-2500.0,0.0003,120]
[329588520,1718467459614,-250.0,0.0003,30]
[329588521,1718467459644,-250.0,0.0003,30]
[329588522,1718467459703,-250.0,0.0003,30]
[329588523,1718467459735,-287.76898905,0.0003,30]
[329588524,1718467459772,-1000.0,0.0003,30]
[329588525,1718467459811,-500.0,0.0003,120]
[329588526,1718467459849,-2072.0,0.0003,30]
[329588527,1718467459885,-202.49140877,0.00030137,30]
[329588528,1718467459944,-1500.0,0.00030137,30]
[329588529,1718467460015,-300.0,0.00030158,120]
[329588530,1718467460048,-200.0,0.00030499,120]
[329588531,1718467460102,-1000.0,0.00030499,120]
[329588532,1718467460172,-200.0,0.00030499,120]
[329588533,1718467460244,-34252.309796,0.000305,30]
[329588534,1718467460306,-1208.0,0.00030681,30]
[329588535,1718467460404,-200.0,0.00030999,120]
[329588536,1718467460452,-155.0,0.00031,30]
[329588537,1718467460497,-1800.0,0.00031,32]
[329588538,1718467460569,-165.82174003,0.000314,30]
[329588539,1718467460635,-202.709216,0.00031499,120]
[329588540,1718467460744,-485.9125454,0.000317,30]
[329588541,1718467460820,-435.252528,0.00031999,120]
[329588542,1718467460852,-1402.46730112,0.00032,60]
[329588543,1718467461085,-1800.0,0.00032,33]
[329588544,1718467461126,-954.66473721,0.00032,40]
[329588545,1718467461156,-458.11902308,0.00032043,120]
[329588546,1718467461202,-257.80408994,0.00032393,40]
[329588547,1718467461252,-322.26025573,0.00032876,30]
[329588548,1718467461314,-839.26,0.00032876,120]
[329588549,1718467461408,-839.26,0.00032876,120]
[329588550,1718467461480,-839.26,0.00032876,120]
[329588551,1718467461541,-839.26,0.00032876,120]
[329588552,1718467461584,-839.26,0.00032876,120]
[329588553,1718467461649,-839.26,0.00032876,120]
[329588554,1718467461684,-839.26,0.00032876,120]
[329588555,1718467461718,-839.26,0.00032876,120]
[329588556,1718467461757,-839.26,0.00032876,120]
[329588557,1718467461793,-839.26,0.00032876,120]
[329588558,1718467461855,-839.26,0.00032876,120]
[329588559,1718467461890,-839.26,0.00032876,120]
[329588560,1718467461952,-839.26,0.00032876,120]
[329588561,1718467462012,-839.26,0.00032876,120]
[329588562,1718467462076,-839.26,0.00032876,120]
[329588563,1718467462153,-839.26,0.00032876,120]
[329588564,1718467462223,-839.26,0.00032876,120]
[329588565,1718467462281,-839.26,0.00032876,120]
[329588566,1718467462327,-839.26,0.00032876,120]
[329588567,1718467462400,-839.26,0.00032876,120]
[329588568,1718467462467,-839.26,0.00032876,120]
[329588569,1718467462501,-839.26,0.00032876,120]
[329588570,1718467462535,-839.26,0.00032876,120]
[329588571,1718467462576,-839.4373224,0.00032876,120]
[329588572,1718467462610,-200.0,0.00032877,30]
[329588573,1718467462707,-1800.0,0.00033,34]
[329588574,1718467462796,-159.0687744,0.00033,120]
[329588575,1718467462850,-638.53820844,0.00033,120]
[329588576,1718467462950,-668.46,0.00033151,120]
[329588577,1718467462983,-8563.077449,0.000335,30]
[329588578,1718467463067,-348.99693496,0.00033811,40]
[329588579,1718467463098,-619.43972811,0.00033811,40]
[329588580,1718467463161,-1322.15026496,0.00033811,40]
[329588581,1718467463240,-1800.0,0.00034,35]
[329588582,1718467463287,-414.86,0.0003479,30]
[329588583,1718467463321,-603.94609441,0.000348,30]
[329588584,1718467463373,-2192.3670895,0.00035,30]
[329588585,1718467463424,-229.82544577,0.00035,30]
[329588586,1718467463475,-783.12432474,0.00035,120]
[329588587,1718467463511,-201.26539556,0.00035,120]
[329588588,1718467463547,-1800.0,0.00035,36]
[329588589,1718467463580,-167.26950937,0.00035,30]
[329588590,1718467463619,-507.59138517,0.00035,30]
[329588591,1718467463662,-1000.0,0.00035,60]
[329588592,1718467463709,-450.0,0.0003502,30]
[329588593,1718467463777,-1800.0,0.00036,37]
[329588594,1718467463821,-450.0,0.0003626,30]
[329588595,1718467463860,-150.0,0.00036354,120]
[329588596,1718467463904,-154.886305,0.000368,32]
[329588597,1718467463946,-1800.0,0.00037,38]
[329588598,1718467463977,-799.5317977,0.00037,120]
[329588599,1718467464039,-1086.0,0.00037,120]
[329588600,1718467464075,-450.0,0.000375,30]
[329588601,1718467464135,-230.67157019,0.00038,120]
[329588602,1718467464213,-783.12432474,0.00038,120]
[329588603,1718467464245,-492.07399328,0.00038,30]
[329588604,1718467464291,-300.0,0.00038,120]
[329588605,1718467464346,-150.0,0.00038114,120]
[329588606,1718467464392,-169.99168565,0.000384,33]
[329588607,1718467464461,-536.14649954,0.00038475,120]
[329588608,1718467464552,-150.0,0.00038717,120]
[329588609,1718467464583,-450.0,0.0003874,30]
[329588610,1718467464630,-434.17148762,0.000388,45]
[329588611,1718467464661,-826280.32307525,0.000388,30]
[329588612,1718467472129,-1173719.67692475,0.000388,30]
[329588613,1718467472172,-447.42716617,0.000389,30]
[329588614,1718467472238,-201.50261276,0.00039,30]
[329588615,1718467472270,-1150.0,0.00039,120]
[329588616,1718467472308,-28849.31530766,0.00039,120]
[329588617,1718467472377,-795632.07798866,0.00039301,30]
[329588618,1718467476513,-2000.0,0.00027397,30]
[329588619,1718467476666,-571779.45709131,0.00039301,30]
[329588620,1718467476707,-2942.66489615,0.00039487,40]
[329588621,1718467476777,-726.21999999,0.00039504,40]
[329588622,1718467476825,-726.21999999,0.00039522,40]
[329588623,1718467476863,-726.21999999,0.00039546,40]
[329588624,1718467476914,-2942.66489615,0.00039556,40]
[329588625,1718467476959,-2942.66489615,0.00039562,40]
[329588626,1718467477027,-1399.46114116,0.00039698,120]
[329588627,1718467477060,-181.6511467,0.00039698,90]
[329588628,1718467477170,-414.86,0.00039771,30]
[329588629,1718467477228,-4281.538724,0.000398,30]
[329588630,1718467477276,-40000.0000005,0.000398,30]
[329588631,1718467477323,-191.76785188,0.0003985,30]
[329588632,1718467477388,-3689.58827106,0.0003985,30]
[329588633,1718467477445,-912.73890127,0.000399,30]
[329588634,1718467477484,-3288.590908,0.000399,30]
[329588635,1718467477539,-1057.45474093,0.000399,30]
[329588636,1718467477597,-4634.489351,0.000399,30]
[329588637,1718467477639,-669.41103269,0.0003998,30]
[329588638,1718467477712,-50000.0,0.0004,30]
[329588639,1718467477773,-45141.84115545,0.0004,30]
[329588640,1718467477821,-786.99998219,0.0004,120]
[329588641,1718467477861,-520.14431621,0.0004,60]
[329588642,1718467477913,-200.0,0.0004,120]
[329588643,1718467478024,-15232.18850125,0.0004,120]
[329588644,1718467478105,-251.29829223,0.0004,120]
[329588645,1718467478185,-382.1183679,0.0004,120]
[329588646,1718467478219,-1827.85152703,0.0004,30]
[329588647,1718467478259,-284.48421166,0.0004,30]
[329588648,1718467478313,-806.07923595,0.0004,120]
[329588649,1718467478368,-2082.51619369,0.0004,60]
[329588650,1718467478438,-1041.05210294,0.0004,32]
[329588651,1718467478560,-328.52786816,0.0004,30]
[329588652,1718467478608,-684.71867804,0.0004,120]
[329588653,1718467478680,-483.9437029,0.0004,120]
[329588654,1718467478767,-288.01092191,0.0004,60]
[329588655,1718467478817,-1000.0,0.0004,120]
[329588656,1718467478876,-1318.0,0.0004,90]
[329588657,1718467478939,-2657.06242043,0.0004,30]
[329588658,1718467478994,-2000.0,0.0004,32]
[329588659,1718467479035,-2500.0,0.0004,120]
[329588660,1718467479088,-1000.0,0.0004,120]
[329588661,1718467479173,-202.0,0.0004,30]
[329588662,1718467479212,-570.0,0.0004,120]
[329588663,1718467479253,-253.3083312,0.0004,120]
[329588664,1718467479310,-17786.41704508,0.0004,30]
[329588665,1718467479436,-2000.0,0.0004,30]
[329588666,1718467479497,-1805.62,0.0004,120]
[329588667,1718467479548,-493.35860512,0.0004001,30]
[329588668,1718467479623,-1443.63387,0.00040088,30]
[329588669,1718467479681,-602.20529642,0.00040095,120]
[329588670,1718467479743,-222.55360431,0.0004025,120]
[329588671,1718467479804,-1443.63387,0.00040288,30]
[329588672,1718467479849,-151.0,0.000403,41]
[329588673,1718467479914,-1443.63387,0.00040488,30]
[329588674,1718467479956,-291.03218568,0.000405,120]
[329588675,1718467479999,-324.75391631,0.000405,30]
[329588676,1718467480049,-569.86625976,0.000405,30]
[329588677,1718467480086,-500.0,0.000405,120]
[329588678,1718467480139,-2500.0,0.000405,120]
[329588679,1718467480181,-181.66,0.00040639,120]
[329588680,1718467480233,-1443.63387,0.00040688,30]
[329588681,1718467480272,-3308.0,0.000407,81]
[329588682,1718467480348,-2851.56830668,0.000408,30]
[329588683,1718467480422,-1000.0,0.000408,120]
[329588684,1718467480471,-1000.0,0.000408,120]
[329588685,1718467480530,-1000.0,0.000408,120]
[329588686,1718467480593,-1000.0,0.000408,120]
[329588687,1718467480639,-1000.0,0.000408,120]
[329588688,1718467480699,-1000.0,0.000408,120]
[329588689,1718467480765,-1000.0,0.000408,120]
[329588690,1718467480842,-1000.0,0.000408,120]
[329588691,1718467480922,-1000.0,0.000408,120]
[329588692,1718467480968,-680.95,0.000408,120]
[329588693,1718467481076,-179.07379338,0.000409,120]
[329588694,1718467481125,-179.07379338,0.000409,120]
[329588695,1718467481170,-179.07379338,0.000409,120]
[329588696,1718467481206,-179.07379338,0.000409,120]
[329588697,1718467481268,-179.07379338,0.000409,120]
[329588698,1718467481310,-995.73723531,0.00040999,120]
[329588699,1718467481373,-50000.0,0.00041,31]
[329588700,1718467481411,-469.13065312,0.00041,120]
[329588701,1718467481470,-2463.31214784,0.00041,30]
[329588702,1718467481508,-186.50757678,0.00041,120]
[329588703,1718467481553,-834.88404403,0.00041,60]
[329588704,1718467481606,-4532.96869349,0.00041,30]
[329588705,1718467481661,-1050.0,0.00041,120]
[329588706,1718467481750,-2500.0,0.00041,120]
[329588707,1718467481811,-1000.0,0.00041,120]
[329588708,1718467481854,-1000.0,0.00041,120]
[329588709,1718467481922,-1000.0,0.00041,120]
[329588710,1718467482001,-1000.0,0.00041,120]
[329588711,1718467482064,-1000.0,0.00041,120]
[329588712,1718467482121,-1134.54,0.00041,120]
[329588713,1718467482311,-335.98787327,0.00041,30]
[329588714,1718467482368,-2000.0,0.00041,30]
[329588715,1718467482413,-152.0,0.00041041,31]
[329588716,1718467482458,-1896.67305086,0.00041058,120]
[329588717,1718467482493,-150.0,0.00041062,120]
[329588718,1718467482526,-1443.63387,0.00041088,30]
[329588719,1718467482560,-510.0,0.00041095,120]
[329588720,1718467482595,-4000.0,0.00041096,30]
[329588721,1718467482632,-150.0,0.00041204,30]
[329588722,1718467482679,-150.0,0.00041212,30]
[329588723,1718467482738,-150.0,0.00041245,30]
[329588724,1718467482822,-1443.63387,0.00041288,30]
[329588725,1718467482871,-150.0,0.00041367,30]
[329588726,1718467482953,-150.0,0.00041367,30]
[329588727,1718467483027,-510.0,0.00041369,120]
[329588728,1718467483085,-150.0,0.00041411,30]
[329588729,1718467483152,-150.0,0.00041428,30]
[329588730,1718467483200,-1443.63387,0.00041488,30]
[329588731,1718467483238,-150.0,0.00041529,30]
[329588732,1718467483291,-500.0,0.00041608,30]
[329588733,1718467483341,-500.0,0.00041608,30]
[329588734,1718467483387,-150.0,0.0004161,30]
[329588735,1718467483477,-150.0,0.0004161,30]
[329588736,1718467483528,-150.0,0.0004161,30]
[329588737,1718467483585,-510.0,0.00041643,120]
[329588738,1718467483638,-1038.0,0.00041643,30]
[329588739,1718467483673,-585.60206461,0.00041643,120]
[329588740,1718467483707,-1443.63387,0.00041688,30]
[329588741,1718467483759,-150.0,0.00041691,30]
[329588742,1718467483795,-975.50341374,0.000417,120]
[329588743,1718467483835,-150.0,0.00041744,120]
[329588744,1718467483899,-150.0,0.00041793,30]
[329588745,1718467483950,-150.0,0.00041809,30]
[329588746,1718467484023,-150.0,0.00041853,30]
[329588747,1718467484119,-150.0,0.00041853,30]
[329588748,1718467484211,-2100.0,0.00041882,30]
[329588749,1718467484273,-101776.65843975,0.000419,111]
[329588750,1718467484337,-193.69009285,0.00041917,120]
[329588751,1718467484421,-152.0,0.00041961,31]
[329588752,1718467484462,-150.0,0.00041975,30]
[329588753,1718467484512,-328.77048895,0.00041992,120]
[329588754,1718467484559,-50000.0,0.00042,32]
[329588755,1718467484632,-187.77970421,0.00042,120]
[329588756,1718467484668,-900.57990903,0.00042,120]
[329588757,1718467484697,-3217.04703346,0.00042,120]
[329588758,1718467484731,-2997.99,0.00042,120]
[329588759,1718467484772,-150.0,0.00042008,30]
[329588760,1718467484843,-150.0,0.00042016,30]
[329588761,1718467484951,-1400.0,0.00042156,30]
[329588762,1718467485027,-500.0,0.00042156,30]
[329588763,1718467485078,-405.19349907,0.00042156,30]
[329588765,1718467485139,-150.0,0.00042158,30]
[329588768,1718467485228,-150.0,0.00042178,30]
[329588770,1718467485337,-1900.89,0.0004218,60]
[329588771,1718467485435,-150.0,0.00042207,30]
[329588772,1718467485480,-150.0,0.0004234,30]
[329588773,1718467485547,-150.0,0.0004234,30]
[329588774,1718467485654,-150.0,0.0004234,30]
[329588775,1718467485748,-150.0,0.00042406,30]
[329588776,1718467485829,-2100.0,0.0004243,30]
[329588777,1718467485901,-150.0,0.00042502,30]
[329588778,1718467485948,-150.0,0.00042523,30]
[329588779,1718467485987,-150.0,0.00042605,30]
[329588780,1718467486058,-150.0,0.00042664,30]
[329588781,1718467486102,-1400.0,0.00042704,30]
[329588782,1718467486152,-600.0,0.00042704,30]
[329588783,1718467486196,-150.0,0.00042705,30]
[329588784,1718467486248,-150.0,0.00042705,30]
[329588785,1718467486294,-15098.2059,0.0004279,30]
[329588786,1718467486335,-150.0,0.00042805,30]
[329588787,1718467486387,-150.0,0.00042827,30]
[329588788,1718467486471,-150.0,0.00042827,30]
[329588789,1718467486514,-157.04538557,0.0004288,120]
[329588790,1718467486553,-152.0,0.0004288,31]
[329588791,1718467486616,-150.0,0.00042888,30]
[329588792,1718467486646,-221.98667599,0.000429,30]
[329588793,1718467486691,-1100.0,0.00042978,30]
[329588794,1718467486759,-150.0,0.00042989,30]
[329588795,1718467486860,-50000.0,0.00043,33]
[329588796,1718467486913,-100124.46078863,0.00043,30]
[329588797,1718467486965,-1566.24864948,0.00043,120]
[329588798,1718467487032,-5312.07936168,0.00043,30]
[329588799,1718467487120,-734513.29251396,0.00043,45]
[329588800,1718467496665,-323.92317652,0.00029,30]
[329588801,1718467496769,-296.27995156,0.00031,30]
[329588802,1718467496837,-618.72119629,0.000317,30]
[329588803,1718467496956,-324.75391631,0.0004,30]
[329588804,1718467497029,-172.0345361,0.00042784,120]
[329588805,1718467497081,-172.0345361,0.0004281,120]
[329588806,1718467497128,-172.0345361,0.00042813,120]
[329588807,1718467497231,-172.0345361,0.00042837,120]